[Event "74th Superior Womens Argentine-ch 2023"]
[Site "Buenos Aires"]
[Date "2023.11.22"]
[Round "2.5"]
[White "Brizzi, Milagros Tatiana"]
[Black "Semprevivo, Florencia"]
[Result "1-0"]
[ECO "B01"]
[WhiteElo "2076"]
[BlackElo "1871"]
[Annotator "RC"]
[PlyCount "47"]
[EventDate "2023.11.20"]
[EventType "swiss"]
[EventCountry "ARG"]
[SourceTitle "playchess.com"]
[Source "ChessBase"]
[SourceQuality "1"]
[TimeControl "5400+30"]

1. e4 {[%emt 0:00:26]} d5 {[%emt 0:00:31]} 2. exd5 {[%emt 0:00:27]} Qxd5 {[%emt 0:00:09]} 3. Nc3 {[%emt 0:00:11]} Qa5 {[%emt 0:00:08]} 4. d4 {[%emt 0:00:49]} Nf6 {[%emt 0:00:28]} 5. Nf3 {[%emt 0:00:35]} c6 {[%emt 0:01:33]} 6. Bc4 {[%emt 0:05:41]} Bf5 {[%emt 0:02:18]} 7. Bd2 {[%emt 0:03:54]} Nbd7 {[%emt 0:03:55]} 8. Nd5 {[%emt 0:10:42]} Qd8 {[%emt 0:00:41]} 9. Ne3 {[%emt 0:00:58]} Bg6 {[%emt 0:02:14]} 10. Qe2 {[%emt 0:08:00]} e6 {[%emt 0:03:47]} 11. h4 {[%emt 0:07:00]} Bd6 {[%emt 0:06:27]} 12. O-O-O {[%emt 0:05:50]} Qc7 {[%emt 0:08:04]} 13. Ng5 {[%emt 0:05:41]} h5 {[%emt 0:04:20]} 14. Bxe6 {[%emt 0:08:38]} fxe6 {[%emt 0:03:19]} 15. Nxe6 {[%emt 0:00:05]} Qb8 {[%emt 0:00:28]} 16. Nxg7+ {[%emt 0:10:52]} Kd8 {[%emt 0:03:42]} 17. Nc4 {[%emt 0:02:18]} Rg8 {[%emt 0:09:22]} 18. Ne6+ {[%emt 0:05:37]} Kc8 {[%emt 0:00:25]} 19. Rhe1 {[%emt 0:03:44]} Re8 {[%emt 0:08:18]} 20. Qf3 {[%emt 0:02:11]} Nd5 {[%emt 0:06:58]} 21. Qh3 {[%emt 0:04:17]} b6 {[%emt 0:05:58]} 22. Ng5 {[%emt 0:03:03]} N5f6 {[%emt 0:01:10]} 23. Rxe8+ {[%emt 0:01:02]} Bxe8 {[%emt 0:00:19]} 24. Qe6 {[%emt 0:10:29]} 1-0

[Event "74th Superior Womens Argentine-ch 2023"]
[Site "Buenos Aires"]
[Date "2023.11.23"]
[Round "3.1"]
[White "Zuriel, Marisa"]
[Black "Borda Rodas, Anapaola S."]
[Result "0-1"]
[ECO "C70"]
[WhiteElo "2165"]
[BlackElo "2261"]
[Annotator "RC"]
[PlyCount "46"]
[EventDate "2023.11.20"]
[EventType "swiss"]
[EventCountry "ARG"]
[SourceTitle "playchess.com"]
[Source "ChessBase"]
[SourceQuality "1"]
[TimeControl "5400+30"]

1. e4 {[%emt 0:00:25]} e5 {[%emt 0:00:32]} 2. Nf3 {[%emt 0:00:09]} Nc6 {[%emt 0:00:07]} 3. Bb5 {[%emt 0:00:26]} a6 {[%emt 0:00:08]} 4. Ba4 {[%emt 0:00:08]} Nge7 {[%emt 0:00:08]} 5. d4 {[%emt 0:08:52]} exd4 {[%emt 0:05:26]} 6. Nxd4 {[%emt 0:01:06]} Nxd4 {[%emt 0:00:22]} 7. Qxd4 {[%emt 0:00:05]} Nc6 {[%emt 0:00:07]} 8. Qd3 {[%emt 0:08:29]} Bc5 {[%emt 0:07:37]} 9. Nc3 {[%emt 0:00:50]} O-O {[%emt 0:02:09]} 10. Bf4 {[%emt 0:11:04]} d6 {[%emt 0:08:43]} 11. O-O {[%emt 0:03:49]} b5 {[%emt 0:09:14]} 12. Bb3 {[%emt 0:00:15]} Na5 {[%emt 0:01:02]} 13. Rfe1 {[%emt 0:12:31]} Nxb3 {[%emt 0:05:31]} 14. axb3 {[%emt 0:00:08]} Bb7 {[%emt 0:01:04]} 15. Be3 {[%emt 0:00:30]} Bb4 {[%emt 0:04:15]} 16. Bd4 {[%emt 0:11:17]} c5 {[%emt 0:15:18]} 17. Be3 {[%emt 0:00:05]} Re8 {[%emt 0:06:40]} 18. Bd2 {[%emt 0:07:48]} Qf6 {[%emt 0:06:43]} 19. Rad1 {[%emt 0:13:08]} Rad8 {[%emt 0:03:24]} 20. Nd5 {[%emt 0:05:51]} Bxd5 {[%emt 0:04:35]} 21. Bxb4 {[%emt 0:01:29]} Bxe4 {[%emt 0:04:16]} 22. Rxe4 {[%emt 0:00:11]} cxb4 {[%emt 0:00:05]} 23. Qxd6 {[%emt 0:04:17]} Rf8 {[%emt 0:00:45]} 0-1

[Event "74th Superior Womens Argentine-ch 2023"]
[Site "Buenos Aires"]
[Date "2023.11.23"]
[Round "3.2"]
[White "Campos, Maria Jose"]
[Black "Brizzi, Milagros Tatiana"]
[Result "0-1"]
[ECO "A11"]
[WhiteElo "2208"]
[BlackElo "2076"]
[Annotator "RC"]
[PlyCount "46"]
[EventDate "2023.11.20"]
[EventType "swiss"]
[EventCountry "ARG"]
[SourceTitle "playchess.com"]
[Source "ChessBase"]
[SourceQuality "1"]
[TimeControl "5400+30"]

1. c4 {[%emt 0:01:09]} c6 {[%emt 0:00:42]} 2. Nf3 {[%emt 0:02:52]} d5 {[%emt 0:01:36]} 3. g3 {[%emt 0:00:39]} Nf6 {[%emt 0:01:19]} 4. Bg2 {[%emt 0:00:54]} dxc4 {[%emt 0:01:38]} 5. a4 {[%emt 0:02:12]} a5 {[%emt 0:04:22]} 6. Na3 {[%emt 0:01:53]} Be6 {[%emt 0:03:03]} 7. Ng5 {[%emt 0:04:21]} Bd5 {[%emt 0:01:13]} 8. e4 {[%emt 0:01:08]} h6 {[%emt 0:00:28]} 9. exd5 {[%emt 0:02:50]} hxg5 {[%emt 0:00:09]} 10. dxc6 {[%emt 0:02:30]} Nxc6 {[%emt 0:00:18]} 11. O-O {[%emt 0:02:26]} g4 {[%emt 0:09:17]} 12. d4 {[%emt 0:04:40]} cxd3 {[%emt 0:06:14]} 13. Bg5 {[%emt 0:20:08]} Qd7 {[%emt 0:07:08]} 14. Re1 {[%emt 0:07:57]} Qf5 {[%emt 0:15:29]} 15. Nb5 {[%emt 0:07:35]} Rd8 {[%emt 0:09:18]} 16. Bxf6 {[%emt 0:18:34]} gxf6 {[%emt 0:01:32]} 17. Qb3 {[%emt 0:03:02]} Bh6 {[%emt 0:03:28]} 18. Nc7+ {[%emt 0:07:09]} Kf8 {[%emt 0:00:33]} 19. Qxb7 {[%emt 0:00:56]} Ne5 {[%emt 0:01:30]} 20. Nd5 {[%emt 0:02:44]} Rd7 {[%emt 0:01:21]} 21. Qc8+ {[%emt 0:01:34]} Kg7 {[%emt 0:01:09]} 22. Qc3 {[%emt 0:02:30]} Nf3+ {[%emt 0:01:50]} 23. Bxf3 {[%emt 0:01:14]} gxf3 {[%emt 0:00:06]} 0-1

[Event "74th Superior Womens Argentine-ch 2023"]
[Site "Buenos Aires"]
[Date "2023.11.23"]
[Round "3.3"]
[White "Nejanky, Maisa"]
[Black "Sarquis, Maria Belen"]
[Result "0-1"]
[ECO "C22"]
[WhiteElo "1951"]
[BlackElo "2194"]
[Annotator "RC"]
[PlyCount "122"]
[EventDate "2023.11.20"]
[EventType "swiss"]
[EventCountry "ARG"]
[SourceTitle "playchess.com"]
[Source "ChessBase"]
[SourceQuality "1"]
[TimeControl "5400+30"]

1. e4 {[%emt 0:19:15]} e5 {[%emt 0:00:07]} 2. d4 {[%emt 0:00:07]} exd4 {[%emt 0:00:45]} 3. Qxd4 {[%emt 0:00:06]} Nc6 {[%emt 0:00:17]} 4. Qe3 {[%emt 0:00:15]} Nf6 {[%emt 0:01:40]} 5. Nc3 {[%emt 0:02:40]} Bb4 {[%emt 0:01:28]} 6. Bd2 {[%emt 0:00:10]} O-O {[%emt 0:02:09]} 7. O-O-O {[%emt 0:00:08]} Re8 {[%emt 0:01:18]} 8. Qg3 {[%emt 0:02:10]} d6 {[%emt 0:06:11]} 9. f3 {[%emt 0:02:31]} Be6 {[%emt 0:06:02]} 10. a3 {[%emt 0:15:02]} Ba5 {[%emt 0:03:37]} 11. Nge2 {[%emt 0:00:24]} b5 {[%emt 0:19:22]} 12. Nxb5 {[%emt 0:09:53]} Bxd2+ {[%emt 0:11:56]} 13. Rxd2 {[%emt 0:00:27]} Ne5 {[%emt 0:02:13]} 14. Ned4 {[%emt 0:08:01]} Bd7 {[%emt 0:07:19]} 15. Nc3 {[%emt 0:05:51]} Rb8 {[%emt 0:03:11]} 16. Be2 {[%emt 0:11:24]} Rb6 {[%emt 0:02:49]} 17. h4 {[%emt 0:10:12]} Qb8 {[%emt 0:03:23]} 18. h5 {[%emt 0:08:22]} h6 {[%emt 0:01:07]} 19. Nb3 {[%emt 0:01:28]} a5 {[%emt 0:03:02]} 20. f4 {[%emt 0:01:02]} Nc6 {[%emt 0:00:31]} 21. Bd3 {[%emt 0:00:54]} Be6 {[%emt 0:02:39]} 22. Na4 {[%emt 0:00:21]} Rxb3 {[%emt 0:03:24]} 23. cxb3 {[%emt 0:00:03]} Nd4 {[%emt 0:00:10]} 24. e5 {[%emt 0:00:45]} Nxb3+ {[%emt 0:03:57]} 25. Kc2 {[%emt 0:00:04]} dxe5 {[%emt 0:01:26]} 26. fxe5 {[%emt 0:00:30]} Nd7 {[%emt 0:03:13]} 27. Rdd1 {[%emt 0:00:54]} Nd4+ {[%emt 0:01:47]} 28. Kb1 {[%emt 0:00:09]} Qb3 {[%emt 0:01:09]} 29. Nc3 {[%emt 0:00:23]} Rb8 {[%emt 0:00:35]} 30. Rd2 {[%emt 0:00:34]} Nc5 {[%emt 0:02:39]} 31. Qf2 {[%emt 0:01:11]} Nxd3 32. Rxd3 {[%emt 0:00:14]} Bf5 {[%emt 0:03:12]} 33. Rhd1 {[%emt 0:00:56]} Qxc3 {[%emt 0:00:49]} 34. Ka2 {[%emt 0:00:24]} Qc4+ {[%emt 0:01:43]} 35. b3 {[%emt 0:00:18]} Qe6 {[%emt 0:01:57]} 36. Qxd4 {[%emt 0:00:35]} Bxd3 {[%emt 0:00:16]} 37. Rxd3 {[%emt 0:00:21]} a4 {[%emt 0:00:29]} 38. Qxa4 {[%emt 0:00:32]} Qxe5 {[%emt 0:00:11]} 39. Qg4 {[%emt 0:00:48]} Re8 {[%emt 0:00:56]} 40. a4 {[%emt 0:00:28]} Qe1 {[%emt 0:00:17]} 41. Qd1 {[%emt 0:00:33]} Qh4 {[%emt 0:00:56]} 42. g3 {[%emt 0:00:26]} Qe7 {[%emt 0:00:30]} 43. Rd7 {[%emt 0:00:19]} Qe5 {[%emt 0:00:39]} 44. Qf3 {[%emt 0:00:37]} Rf8 {[%emt 0:00:33]} 45. Rd5 {[%emt 0:00:36]} Qe7 {[%emt 0:00:17]} 46. Qd3 {[%emt 0:00:31]} Qe1 {[%emt 0:00:18]} 47. a5 {[%emt 0:00:27]} Qf2+ {[%emt 0:00:30]} 48. Ka3 {[%emt 0:00:15]} c6 {[%emt 0:00:12]} 49. Rf5 {[%emt 0:00:16]} Qe1 {[%emt 0:00:26]} 50. Ka2 {[%emt 0:00:34]} Re8 {[%emt 0:00:22]} 51. Qc4 {[%emt 0:00:54]} Re2+ {[%emt 0:01:03]} 52. Ka3 {[%emt 0:00:06]} Qa1+ {[%emt 0:00:42]} 53. Kb4 {[%emt 0:00:37]} Qe1+ {[%emt 0:00:14]} 54. Ka3 {[%emt 0:00:46]} Qa1+ {[%emt 0:00:33]} 55. Kb4 {[%emt 0:00:10]} Qe1+ {[%emt 0:00:08]} 56. Ka3 {[%emt 0:00:42]} Re4 {[%emt 0:01:01]} 57. Qxf7+ {[%emt 0:00:38]} Kh8 {[%emt 0:00:06]} 58. Qf8+ {[%emt 0:00:35]} Kh7 {[%emt 0:00:04]} 59. Rf1 {[%emt 0:00:32]} Qxa5+ {[%emt 0:00:23]} 60. Kb2 {[%emt 0:00:21]} Re2+ {[%emt 0:00:05]} 61. Kc1 {[%emt 0:00:26]} Qa1# {[%emt 0:00:11]} 0-1

[Event "74th Superior Womens Argentine-ch 2023"]
[Site "Buenos Aires"]
[Date "2023.11.23"]
[Round "3.4"]
[White "Flores Mirabal, Nancy"]
[Black "Donda, Jazmin"]
[Result "1-0"]
[ECO "E01"]
[WhiteElo "1937"]
[BlackElo "1825"]
[Annotator "RC"]
[PlyCount "92"]
[EventDate "2023.11.20"]
[EventType "swiss"]
[EventCountry "ARG"]
[SourceTitle "playchess.com"]
[Source "ChessBase"]
[SourceQuality "1"]
[TimeControl "5400+30"]

1. Nf3 {[%emt 0:10:13]} d5 {[%emt 0:00:03]} 2. g3 {[%emt 0:00:30]} Nf6 {[%emt 0:00:09]} 3. Bg2 {[%emt 0:00:25]} c5 {[%emt 0:00:27]} 4. O-O {[%emt 0:00:11]} Nc6 {[%emt 0:00:07]} 5. d4 {[%emt 0:00:05]} e6 {[%emt 0:00:23]} 6. c4 {[%emt 0:00:30]} cxd4 {[%emt 0:00:52]} 7. Nxd4 {[%emt 0:03:43]} Bc5 {[%emt 0:00:15]} 8. Nxc6 {[%emt 0:01:48]} bxc6 {[%emt 0:00:07]} 9. Qa4 {[%emt 0:03:34]} Bd7 {[%emt 0:00:21]} 10. Nc3 {[%emt 0:04:37]} O-O {[%emt 0:01:15]} 11. Bg5 {[%emt 0:07:28]} Be7 {[%emt 0:01:30]} 12. Qc2 {[%emt 0:00:59]} Rb8 {[%emt 0:03:53]} 13. Rab1 {[%emt 0:06:07]} Qa5 {[%emt 0:08:27]} 14. Rfd1 {[%emt 0:09:23]} Rfe8 {[%emt 0:02:54]} 15. e4 {[%emt 0:15:42]} d4 {[%emt 0:10:25]} 16. e5 {[%emt 0:00:36]} dxc3 {[%emt 0:00:06]} 17. Bxf6 {[%emt 0:03:40]} gxf6 {[%emt 0:00:58]} 18. Rxd7 {[%emt 0:10:04]} Qxa2 {[%emt 0:29:39]} 19. Qd1 {[%emt 0:12:51]} Rxb2 {[%emt 0:03:13]} 20. Ra1 {[%emt 0:02:28]} c2 {[%emt 0:03:14]} 21. Qg4+ {[%emt 0:02:04]} Kf8 {[%emt 0:01:50]} 22. Rxa2 {[%emt 0:02:48]} c1=Q+ {[%emt 0:00:08]} 23. Rd1 {[%emt 0:00:06]} Qc2 {[%emt 0:00:16]} 24. Rxb2 {[%emt 0:00:42]} Qxb2 {[%emt 0:00:06]} 25. Bxc6 {[%emt 0:00:30]} Rb8 {[%emt 0:06:00]} 26. Qh4 {[%emt 0:01:15]} Qc2 {[%emt 0:22:56]} 27. Rd7 {[%emt 0:00:58]} Rb2 {[%emt 0:02:27]} 28. Qf4 {[%emt 0:00:39]} fxe5 {[%emt 0:00:51]} 29. Qe3 {[%emt 0:00:32]} Qxc4 {[%emt 0:01:07]} 30. Be4 {[%emt 0:00:28]} Qb4 {[%emt 0:00:55]} 31. Rxa7 {[%emt 0:00:24]} Bc5 {[%emt 0:00:29]} 32. Qh6+ {[%emt 0:01:10]} Ke8 {[%emt 0:00:18]} 33. Bc6+ {[%emt 0:00:00]} Kd8 {[%emt 0:00:14]} 34. Qf6+ {[%emt 0:00:00]} Kc8 {[%emt 0:00:08]} 35. Ra8+ {[%emt 0:00:00]} Kc7 {[%emt 0:00:25]} 36. Qd8+ {[%emt 0:00:00]} Kxc6 {[%emt 0:00:11]} 37. Rc8+ {[%emt 0:00:00]} Kb5 {[%emt 0:00:14]} 38. Rb8+ {[%emt 0:00:00]} Kc4 {[%emt 0:00:15]} 39. Rxb4+ {[%emt 0:00:43]} Rxb4 {[%emt 0:00:15]} 40. Qd2 {[%emt 0:00:16]} Bd4 {[%emt 0:00:58]} 41. Qc2+ {[%emt 0:00:14]} Kb5 {[%emt 0:00:40]} 42. Qxh7 {[%emt 0:00:18]} Rb2 {[%emt 0:00:49]} 43. Qxf7 {[%emt 0:00:14]} Rxf2 {[%emt 0:00:48]} 44. Qxf2 {[%emt 0:00:21]} Bxf2+ {[%emt 0:00:06]} 45. Kxf2 {[%emt 0:00:02]} Kc4 {[%emt 0:00:07]} 46. Ke3 {[%emt 0:00:08]} Kd5 {[%emt 0:02:39]} 1-0

[Event "74th Superior Womens Argentine-ch 2023"]
[Site "Buenos Aires"]
[Date "2023.11.23"]
[Round "3.5"]
[White "Adam, Ernestina"]
[Black "Semprevivo, Florencia"]
[Result "1-0"]
[ECO "C84"]
[WhiteElo "2036"]
[BlackElo "1871"]
[Annotator "NA RC"]
[PlyCount "61"]
[EventDate "2023.11.20"]
[EventType "swiss"]
[EventCountry "ARG"]
[SourceTitle "playchess.com"]
[Source "ChessBase"]
[SourceQuality "1"]
[TimeControl "5400+30"]

1. e4 {[%emt 0:00:03]} e5 {[%emt 0:00:09]} 2. Nf3 {[%emt 0:00:13]} Nc6 {[%emt 0:00:13]} 3. Bb5 {[%emt 0:00:20]} a6 {[%emt 0:00:11]} 4. Ba4 {[%emt 0:00:25]} Nf6 {[%emt 0:00:16]} 5. O-O {[%emt 0:01:34]} b5 {[%emt 0:00:14]} 6. Bb3 {[%emt 0:00:07]} Be7 {[%emt 0:00:16]} 7. d3 {[%emt 0:01:14]} O-O {[%emt 0:00:16]} 8. c3 {[%emt 0:07:08]} Bb7 {[%emt 0:01:03]} 9. Bg5 {[%emt 0:07:01]} d6 {[%emt 0:01:42]} 10. Re1 {[%emt 0:01:23]} Na5 {[%emt 0:03:43]} 11. Bc2 {[%emt 0:00:55]} c5 {[%emt 0:00:21]} 12. d4 {[%emt 0:02:55]} cxd4 {[%emt 0:02:19]} 13. cxd4 {[%emt 0:01:14]} Nd7 {[%emt 0:01:29]} 14. Bxe7 {[%emt 0:06:28]} Qxe7 {[%emt 0:00:11]} 15. Nc3 {[%emt 0:02:15]} Rfc8 {[%emt 0:04:49]} 16. Nd5 {[%emt 0:08:59]} Qd8 {[%emt 0:01:27]} 17. b3 {[%emt 0:04:41]} Nc6 {[%emt 0:05:15]} 18. Rc1 {[%emt 0:04:13]} Nf8 {[%emt 0:04:29]} 19. Ne3 {[%emt 0:05:31]} Ng6 {[%emt 0:13:21]} 20. g3 {[%emt 0:08:14]} Nb4 {[%emt 0:13:19]} 21. Bb1 {[%emt 0:01:53]} Rxc1 {[%emt 0:07:11]} 22. Qxc1 {[%emt 0:00:09]} exd4 {[%emt 0:00:16]} 23. Nxd4 {[%emt 0:03:17]} Ne5 {[%emt 0:00:30]} 24. Qd1 {[%emt 0:01:58]} g6 {[%emt 0:06:10]} 25. f4 {[%emt 0:02:56]} Nec6 {[%emt 0:00:55]} 26. Nf3 {[%emt 0:02:36]} a5 {[%emt 0:03:27]} 27. Qd2 {[%emt 0:02:04]} Qb6 {[%emt 0:06:04]} 28. Kg2 {[%emt 0:04:48]} Ne7 {[%emt 0:00:36]} 29. Ng4 {[%emt 0:04:36]} d5 {[%emt 0:03:40]} 30. Qb2 {[%emt 0:01:10]} Ra6 {[%emt 0:01:41]} 31. Nh6+ {[%emt 0:00:13]} 1-0

[Event "74th Superior Womens Argentine-ch 2023"]
[Site "Buenos Aires"]
[Date "2023.11.24"]
[Round "4.1"]
[White "Borda Rodas, Anapaola S."]
[Black "Sarquis, Maria Belen"]
[Result "0-1"]
[ECO "C50"]
[WhiteElo "2261"]
[BlackElo "2194"]
[Annotator "RC"]
[PlyCount "86"]
[EventDate "2023.11.20"]
[EventType "swiss"]
[EventCountry "ARG"]
[SourceTitle "playchess.com"]
[Source "ChessBase"]
[SourceQuality "1"]
[TimeControl "5400+30"]

1. e4 {[%emt 0:00:04]} e5 {[%emt 0:00:14]} 2. Nf3 {[%emt 0:00:26]} Nc6 {[%emt 0:00:13]} 3. Bc4 {[%emt 0:00:19]} Nf6 {[%emt 0:01:16]} 4. d3 {[%emt 0:00:17]} Bc5 {[%emt 0:00:55]} 5. O-O {[%emt 0:00:20]} O-O {[%emt 0:06:21]} 6. h3 {[%emt 0:00:14]} h6 {[%emt 0:01:26]} 7. Re1 {[%emt 0:03:58]} Re8 {[%emt 0:03:29]} 8. c3 {[%emt 0:02:47]} d6 {[%emt 0:05:00]} 9. b4 {[%emt 0:06:26]} Bb6 {[%emt 0:00:22]} 10. a4 {[%emt 0:03:37]} a6 {[%emt 0:01:13]} 11. Nbd2 {[%emt 0:05:11]} Ne7 {[%emt 0:08:45]} 12. Bb3 {[%emt 0:05:15]} Ng6 {[%emt 0:02:56]} 13. d4 {[%emt 0:03:27]} c6 {[%emt 0:09:56]} 14. a5 {[%emt 0:06:07]} Bc7 {[%emt 0:00:57]} 15. Bc2 {[%emt 0:05:01]} Be6 {[%emt 0:10:05]} 16. Nf1 {[%emt 0:04:44]} Nh5 {[%emt 0:11:06]} 17. d5 {[%emt 0:14:38]} Bd7 {[%emt 0:02:21]} 18. Ne3 {[%emt 0:04:08]} Nhf4 {[%emt 0:01:16]} 19. c4 {[%emt 0:01:27]} Qf6 {[%emt 0:03:28]} 20. Ng4 {[%emt 0:06:16]} Qe7 {[%emt 0:01:24]} 21. Be3 {[%emt 0:02:41]} cxd5 {[%emt 0:04:10]} 22. cxd5 {[%emt 0:00:54]} Rec8 {[%emt 0:00:48]} 23. Ba4 {[%emt 0:03:36]} Bd8 {[%emt 0:01:59]} 24. Ngh2 {[%emt 0:03:26]} Rc4 {[%emt 0:00:59]} 25. Bd2 {[%emt 0:02:41]} b6 {[%emt 0:02:57]} 26. Bb3 {[%emt 0:01:12]} Rcc8 {[%emt 0:00:32]} 27. Re3 {[%emt 0:03:34]} Bb5 {[%emt 0:00:52]} 28. Nf1 {[%emt 0:00:53]} Nd3 {[%emt 0:01:24]} 29. Qb1 {[%emt 0:01:46]} Ndf4 {[%emt 0:04:38]} 30. Ng3 {[%emt 0:00:35]} Qf6 {[%emt 0:00:27]} 31. Nf5 {[%emt 0:01:43]} Ne7 {[%emt 0:00:20]} 32. Nxe7+ {[%emt 0:00:43]} Qxe7 {[%emt 0:00:09]} 33. Kh2 {[%emt 0:00:40]} Qd7 {[%emt 0:01:39]} 34. Ra2 {[%emt 0:01:18]} Bc7 {[%emt 0:01:46]} 35. Ng1 {[%emt 0:01:42]} bxa5 {[%emt 0:00:44]} 36. bxa5 {[%emt 0:00:22]} Bb8 {[%emt 0:00:22]} 37. Rf3 {[%emt 0:01:54]} Ng6 {[%emt 0:02:19]} 38. Bb4 {[%emt 0:00:52]} Ba7 {[%emt 0:00:17]} 39. Qe1 {[%emt 0:01:44]} Nf4 {[%emt 0:00:34]} 40. Rd2 {[%emt 0:01:40]} Rab8 {[%emt 0:00:41]} 41. g3 {[%emt 0:00:32]} Nd3 {[%emt 0:01:43]} 42. Rdxd3 {[%emt 0:00:36]} Bxd3 {[%emt 0:00:05]} 43. Rxd3 {[%emt 0:00:06]} Qb5 {[%emt 0:00:09]} 0-1

[Event "74th Superior Womens Argentine-ch 2023"]
[Site "Buenos Aires"]
[Date "2023.11.23"]
[Round "4.2"]
[White "Brizzi, Milagros Tatiana"]
[Black "Zuriel, Marisa"]
[Result "1/2-1/2"]
[ECO "B80"]
[WhiteElo "2076"]
[BlackElo "2165"]
[Annotator "RC"]
[PlyCount "206"]
[EventDate "2023.11.20"]
[EventType "swiss"]
[EventCountry "ARG"]
[SourceTitle "playchess.com"]
[Source "ChessBase"]
[SourceQuality "1"]
[TimeControl "5400+30"]

1. e4 {[%emt 0:00:05]} c5 {[%emt 0:00:16]} 2. Nf3 {[%emt 0:00:19]} d6 {[%emt 0:00:06]} 3. d4 {[%emt 0:00:33]} cxd4 {[%emt 0:00:20]} 4. Nxd4 {[%emt 0:00:12]} Nf6 {[%emt 1:31:48]} 5. Nc3 {[%emt 0:00:51]} a6 {[%emt 0:00:08]} 6. Be3 {[%emt 0:00:55]} e6 {[%emt 0:01:44]} 7. f3 {[%emt 0:01:03]} h5 {[%emt 0:00:40]} 8. Qd2 {[%emt 0:02:38]} b5 {[%emt 0:00:27]} 9. a4 {[%emt 0:00:30]} b4 {[%emt 0:01:58]} 10. Na2 {[%emt 0:00:50]} d5 {[%emt 0:00:07]} 11. e5 {[%emt 0:08:35]} Nfd7 {[%emt 0:00:12]} 12. f4 {[%emt 0:02:12]} Nc5 {[%emt 0:01:54]} 13. Bd3 {[%emt 0:02:23]} a5 {[%emt 0:06:38]} 14. O-O {[%emt 0:04:46]} g6 {[%emt 0:03:04]} 15. Nc1 {[%emt 0:08:25]} Be7 {[%emt 0:00:41]} 16. Nce2 {[%emt 0:01:48]} O-O {[%emt 0:02:36]} 17. Rf3 {[%emt 0:07:50]} Bd7 {[%emt 0:11:28]} 18. Raf1 {[%emt 0:06:59]} Nc6 {[%emt 0:10:03]} 19. Nxc6 {[%emt 0:07:22]} Bxc6 {[%emt 0:00:13]} 20. Nd4 {[%emt 0:01:25]} Rc8 {[%emt 0:03:51]} 21. f5 {[%emt 0:03:01]} exf5 {[%emt 0:19:09]} 22. Bxf5 {[%emt 0:08:16]} Bd7 {[%emt 0:07:54]} 23. Qe2 {[%emt 0:21:50]} Qc7 {[%emt 0:13:23]} 24. Bh6 {[%emt 0:04:23]} Bxf5 {[%emt 0:03:58]} 25. Nxf5 {[%emt 0:03:52]} Ne4 {[%emt 0:00:36]} 26. Nxe7+ {[%emt 0:00:49]} Qxe7 {[%emt 0:00:05]} 27. Bxf8 {[%emt 0:02:08]} Rxf8 {[%emt 0:00:05]} 28. Qd3 {[%emt 0:00:00]} Qxe5 {[%emt 0:00:24]} 29. c3 {[%emt 0:00:00]} bxc3 {[%emt 0:03:15]} 30. bxc3 {[%emt 0:01:30]} Qe6 {[%emt 0:03:39]} 31. Qd4 {[%emt 0:00:41]} Qc6 {[%emt 0:00:32]} 32. h3 {[%emt 0:00:44]} Qe6 {[%emt 0:00:55]} 33. Rf4 {[%emt 0:00:28]} Ng3 {[%emt 0:01:57]} 34. R4f2 {[%emt 0:00:50]} Nxf1 {[%emt 0:05:04]} 35. Rxf1 {[%emt 0:00:05]} Rc8 {[%emt 0:00:00]} 36. Rd1 {[%emt 0:00:33]} Qc6 {[%emt 0:00:00]} 37. Qxd5 {[%emt 0:00:34]} Qxa4 {[%emt 0:00:00]} 38. Rf1 {[%emt 0:00:25]} Qc4 {[%emt 0:00:00]} 39. Qxa5 {[%emt 0:00:11]} Qxc3 {[%emt 0:00:00]} 40. Qa2 {[%emt 0:00:30]} Qe3+ {[%emt 0:00:51]} 41. Kh1 {[%emt 0:00:07]} Qe7 {[%emt 0:00:12]} 42. Qb2 {[%emt 0:00:30]} Re8 {[%emt 0:00:14]} 43. Qa2 {[%emt 0:00:21]} Qb7 {[%emt 0:00:23]} 44. Qc4 {[%emt 0:00:42]} Re3 {[%emt 0:00:23]} 45. Qh4 {[%emt 0:01:13]} Qd5 {[%emt 0:01:03]} 46. Kg1 {[%emt 0:00:54]} Re2 {[%emt 0:01:20]} 47. Qg3 {[%emt 0:00:16]} Qd4+ {[%emt 0:00:35]} 48. Kh1 {[%emt 0:00:09]} Rd2 {[%emt 0:00:11]} 49. Qf3 {[%emt 0:00:15]} Qd5 {[%emt 0:00:16]} 50. Qg3 {[%emt 0:00:36]} Rd1 {[%emt 0:00:43]} 51. Rxd1 {[%emt 0:01:04]} Qxd1+ {[%emt 0:00:04]} 52. Kh2 {[%emt 0:00:03]} Qd5 {[%emt 0:00:14]} 53. Qb8+ {[%emt 0:00:22]} Kg7 {[%emt 0:00:05]} 54. Qb2+ {[%emt 0:00:30]} f6 {[%emt 0:00:05]} 55. Qb1 {[%emt 0:00:50]} g5 {[%emt 0:00:53]} 56. Qc2 {[%emt 0:00:39]} Qe5+ {[%emt 0:00:46]} 57. Kg1 {[%emt 0:00:40]} g4 {[%emt 0:00:15]} 58. hxg4 {[%emt 0:00:11]} hxg4 {[%emt 0:00:02]} 59. Qd1 {[%emt 0:00:15]} Qc5+ {[%emt 0:00:38]} 60. Kf1 {[%emt 0:00:19]} Qf5+ {[%emt 0:00:13]} 61. Ke2 {[%emt 0:01:12]} g3 {[%emt 0:02:26]} 62. Qh1 {[%emt 0:00:39]} Qe4+ {[%emt 0:00:30]} 63. Kd2 {[%emt 0:00:13]} Qd4+ {[%emt 0:01:00]} 64. Ke2 {[%emt 0:00:03]} Kg6 {[%emt 0:00:47]} 65. Qh3 {[%emt 0:00:39]} Qf2+ {[%emt 0:00:18]} 66. Kd1 {[%emt 0:00:14]} Kg5 {[%emt 0:00:31]} 67. Kc1 {[%emt 0:00:24]} Qf4+ {[%emt 0:00:45]} 68. Kb2 {[%emt 0:00:12]} Qf2+ {[%emt 0:00:34]} 69. Kc3 {[%emt 0:00:07]} f5 {[%emt 0:00:16]} 70. Kd3 {[%emt 0:00:38]} Qf1+ {[%emt 0:00:15]} 71. Kd4 {[%emt 0:00:16]} Qf4+ {[%emt 0:00:32]} 72. Kd5 {[%emt 0:01:17]} Qe4+ {[%emt 0:00:09]} 73. Kc5 {[%emt 0:00:26]} Qd3 {[%emt 0:01:23]} 74. Qh1 {[%emt 0:00:36]} Qd2 {[%emt 0:00:30]} 75. Kc4 {[%emt 0:02:07]} f4 {[%emt 0:00:10]} 76. Qh3 {[%emt 0:00:52]} Qe3 {[%emt 0:00:48]} 77. Kd5 {[%emt 0:00:37]} Qe2 {[%emt 0:00:17]} 78. Kd4 {[%emt 0:00:39]} Qh5 {[%emt 0:00:41]} 79. Qe6 {[%emt 0:00:46]} Qd1+ {[%emt 0:00:16]} 80. Kc3 {[%emt 0:00:41]} Qc1+ {[%emt 0:00:37]} 81. Kb3 {[%emt 0:00:25]} Qb1+ {[%emt 0:00:39]} 82. Kc3 {[%emt 0:00:18]} Qa1+ {[%emt 0:00:31]} 83. Kc2 {[%emt 0:00:41]} Qd4 {[%emt 0:00:28]} 84. Qg8+ {[%emt 0:00:26]} Kf5 {[%emt 0:00:09]} 85. Qf7+ {[%emt 0:00:44]} Ke5 {[%emt 0:00:30]} 86. Qe7+ {[%emt 0:00:21]} Kd5 {[%emt 0:00:21]} 87. Qb7+ {[%emt 0:00:20]} Kd6 {[%emt 0:01:41]} 88. Qb8+ {[%emt 0:00:09]} Ke7 {[%emt 0:00:15]} 89. Qc7+ {[%emt 0:00:10]} Kf6 {[%emt 0:00:10]} 90. Qc6+ {[%emt 0:00:26]} Kg5 {[%emt 0:00:40]} 91. Qb5+ {[%emt 0:01:03]} Kg4 {[%emt 0:00:21]} 92. Qe2+ {[%emt 0:00:08]} Kg5 {[%emt 0:00:20]} 93. Qe7+ {[%emt 0:00:19]} Qf6 {[%emt 0:01:53]} 94. Qb7 {[%emt 0:00:37]} Qe5 {[%emt 0:00:51]} 95. Qa8 {[%emt 0:00:20]} Qe2+ {[%emt 0:00:30]} 96. Kc3 {[%emt 0:00:29]} f3 {[%emt 0:00:59]} 97. Qg8+ {[%emt 0:00:32]} Kf4 {[%emt 0:00:10]} 98. Qf7+ {[%emt 0:02:11]} Ke3 {[%emt 0:00:26]} 99. Qa7+ {[%emt 0:02:31]} Ke4 {[%emt 0:01:00]} 100. Qe7+ {[%emt 0:00:51]} Kf4 {[%emt 0:00:05]} 101. Qf6+ {[%emt 0:00:26]} Kg4 {[%emt 0:00:59]} 102. Qg6+ {[%emt 0:00:08]} Kf4 {[%emt 0:00:35]} 103. Qf6+ {[%emt 0:00:09]} Kg4 {[%emt 0:00:00]} 1/2-1/2